[Event "19th Prague Open-A 2020"]
[Site "Prague"]
[Date "2020.01.17"]
[Round "9.6"]
[White "Vignesh B"]
[Black "Quesada Vera, Liordis"]
[Result "0-1"]
[ECO "C55"]
[WhiteElo "1912"]
[BlackElo "2386"]
[Annotator "ChessBase"]
[PlyCount "82"]
[EventDate "2020.01.10"]
[EventType "swiss"]
[EventCountry "CZE"]
[SourceTitle "playchess.com"]
[Source "ChessBase"]
[SourceQuality "1"]
[TimeControl "40/5400+30:1800+30"]

1. e4 {[%emt 0:00:00]} e5 {[%emt 0:00:00]} 2. Nf3 {[%emt 0:00:00]} Nc6 {[%emt 0:00:00]} 3. Bc4 {[%emt 0:00:00]} Nf6 {[%emt 0:00:00]} 4. d3 {[%emt 0:00:00]} h6 {[%emt 0:01:17]} 5. O-O {[%emt 0:00:21]} d6 {[%emt 0:00:06]} 6. c3 {[%emt 0:00:05]} g5 {[%emt 0:00:08]} 7. Bb3 {[%emt 0:00:23]} Bg7 {[%emt 0:00:12]} 8. Nbd2 {[%emt 0:00:12]} O-O {[%emt 0:01:16]} 9. Nc4 {[%emt 0:00:24]} Ne7 {[%emt 0:11:09]} 10. Re1 {[%emt 0:05:44]} b5 {[%emt 0:18:25]} 11. Ne3 {[%emt 0:00:11]} Rb8 {[%emt 0:00:15]} 12. h4 {[%emt 0:03:36]} g4 {[%emt 0:07:23]} 13. Nh2 {[%emt 0:00:02]} Kh7 {[%emt 0:00:21]} 14. d4 {[%emt 0:10:45]} Qd7 {[%emt 0:14:47]} 15. dxe5 {[%emt 0:18:49]} dxe5 {[%emt 0:00:09]} 16. Qxd7 {[%emt 0:01:47]} Bxd7 {[%emt 0:00:08]} 17. Nf5 {[%emt 0:00:08]} Nc8 {[%emt 0:19:01]} 18. Bd1 {[%emt 0:09:47]} h5 {[%emt 0:03:22]} 19. f3 {[%emt 0:00:19]} gxf3 {[%emt 0:00:39]} 20. Nxf3 {[%emt 0:00:53]} Ng4 {[%emt 0:00:57]} 21. Nh2 {[%emt 0:00:59]} Nxh2 {[%emt 0:06:56]} 22. Kxh2 {[%emt 0:00:02]} Bxf5 {[%emt 0:11:46]} 23. exf5 {[%emt 0:00:02]} Nd6 {[%emt 0:00:22]} 24. Rf1 {[%emt 0:02:16]} Bf6 {[%emt 0:00:09]} 25. Bxh5 {[%emt 0:08:25]} Bxh4 {[%emt 0:01:40]} 26. Rf3 {[%emt 0:00:13]} Rh8 {[%emt 0:00:57]} 27. Rh3 {[%emt 0:00:24]} Nxf5 {[%emt 0:00:28]} 28. g3 {[%emt 0:13:25]} Kg7 {[%emt 0:01:14]} 29. Bg4 {[%emt 0:00:01]} Nxg3 {[%emt 0:00:36]} 30. Rxg3 {[%emt 0:00:01]} Bxg3+ {[%emt 0:00:10]} 31. Kxg3 {[%emt 0:00:02]} Kg6 {[%emt 0:00:13]} 32. Bf3 {[%emt 0:08:37]} f5 {[%emt 0:00:01]} 33. Bd2 {[%emt 0:01:53]} Rbd8 {[%emt 0:00:13]} 34. Rd1 {[%emt 0:01:51]} Rd3 {[%emt 0:01:04]} 35. Be1 {[%emt 0:01:00]} Rxd1 {[%emt 0:01:15]} 36. Bxd1 {[%emt 0:00:02]} Rh1 {[%emt 0:00:08]} 37. Kf2 {[%emt 0:00:01]} e4 {[%emt 0:00:37]} 38. a4 {[%emt 0:01:46]} a6 {[%emt 0:00:35]} 39. axb5 {[%emt 0:01:28]} axb5 {[%emt 0:00:01]} 40. Bb3 {[%emt 0:00:08]} f4 {[%emt 0:00:32]} 41. c4 {[%emt 0:30:06]} Rh2+ {[%emt 0:30:22]} 0-1

[Event "19th Prague Open-A 2020"]
[Site "Prague"]
[Date "2020.01.17"]
[Round "9.7"]
[White "Neuman, Petr"]
[Black "Malovanyi, Yulian"]
[Result "1-0"]
[ECO "B23"]
[WhiteElo "2371"]
[BlackElo "2360"]
[Annotator "ChessBase"]
[PlyCount "85"]
[EventDate "2020.01.10"]
[EventType "swiss"]
[EventCountry "CZE"]
[SourceTitle "playchess.com"]
[Source "ChessBase"]
[SourceQuality "1"]
[TimeControl "40/5400+30:1800+30"]

1. e4 {[%emt 0:06:41]} c5 {[%emt 0:00:00]} 2. Nc3 {[%emt 0:00:19]} g6 {[%emt 0:02:08]} 3. d4 {[%emt 0:00:08]} cxd4 {[%emt 0:00:54]} 4. Qxd4 {[%emt 0:00:08]} Nf6 {[%emt 0:00:23]} 5. Nf3 {[%emt 0:02:57]} Nc6 {[%emt 0:00:16]} 6. Qa4 {[%emt 0:00:09]} d6 {[%emt 0:05:46]} 7. e5 {[%emt 0:01:36]} dxe5 {[%emt 0:01:01]} 8. Nxe5 {[%emt 0:00:06]} Bg7 {[%emt 0:02:11]} 9. Bb5 {[%emt 0:03:24]} O-O {[%emt 0:02:06]} 10. Nxc6 {[%emt 0:00:21]} bxc6 {[%emt 0:00:08]} 11. Bxc6 {[%emt 0:00:04]} Bd7 {[%emt 0:10:23]} 12. O-O {[%emt 0:05:50]} Bxc6 {[%emt 0:10:20]} 13. Qxc6 {[%emt 0:02:00]} Rc8 {[%emt 0:00:41]} 14. Qa6 {[%emt 0:01:26]} Qc7 {[%emt 0:03:50]} 15. h3 {[%emt 0:01:40]} Rfd8 {[%emt 0:02:10]} 16. Be3 {[%emt 0:00:52]} Nd5 {[%emt 0:01:32]} 17. Nxd5 {[%emt 0:06:10]} Rxd5 {[%emt 0:00:03]} 18. c3 {[%emt 0:03:34]} Ra5 {[%emt 0:00:14]} 19. Qe2 {[%emt 0:00:37]} Rb8 {[%emt 0:00:09]} 20. Rfd1 {[%emt 0:03:25]} h5 {[%emt 0:02:48]} 21. Rd2 {[%emt 0:06:50]} Rab5 {[%emt 0:04:25]} 22. Rad1 {[%emt 0:08:02]} Qb7 {[%emt 0:01:12]} 23. Rd7 {[%emt 0:07:40]} Qe4 {[%emt 0:01:15]} 24. b3 {[%emt 0:04:11]} a5 {[%emt 0:04:08]} 25. c4 {[%emt 0:04:17]} Rb4 {[%emt 0:00:40]} 26. Qd3 {[%emt 0:02:27]} Qxd3 {[%emt 0:00:38]} 27. R1xd3 {[%emt 0:00:06]} a4 {[%emt 0:00:47]} 28. Rd8+ {[%emt 0:03:56]} Rxd8 {[%emt 0:00:09]} 29. Rxd8+ {[%emt 0:00:09]} Kh7 {[%emt 0:00:04]} 30. Rd3 {[%emt 0:02:26]} e5 {[%emt 0:00:18]} 31. Bc5 {[%emt 0:02:19]} Rb7 {[%emt 0:00:48]} 32. b4 {[%emt 0:01:14]} e4 {[%emt 0:00:10]} 33. Rd5 {[%emt 0:00:19]} f5 {[%emt 0:01:29]} 34. g3 {[%emt 0:02:29]} h4 {[%emt 0:00:27]} 35. gxh4 {[%emt 0:00:30]} f4 {[%emt 0:00:10]} 36. b5 {[%emt 0:00:31]} Bf6 {[%emt 0:00:53]} 37. Bd4 {[%emt 0:02:17]} Bxh4 {[%emt 0:00:37]} 38. b6 {[%emt 0:00:39]} e3 {[%emt 0:00:45]} 39. fxe3 {[%emt 0:00:28]} f3 {[%emt 0:00:08]} 40. Ra5 {[%emt 0:03:09]} f2+ {[%emt 0:00:27]} 41. Kf1 {[%emt 0:30:08]} Kh6 {[%emt 0:30:23]} 42. Ra7 {[%emt 0:00:45]} Rb8 {[%emt 0:00:05]} 43. Rf7 {[%emt 0:00:24]} 1-0

[Event "19th Prague Open-A 2020"]
[Site "Prague"]
[Date "2020.01.17"]
[Round "9.9"]
[White "Priehoda, Vitezslav"]
[Black "Czerw, Dawid"]
[Result "1/2-1/2"]
[ECO "E53"]
[WhiteElo "2341"]
[BlackElo "2262"]
[Annotator "ChessBase"]
[PlyCount "42"]
[EventDate "2020.01.10"]
[EventType "swiss"]
[EventCountry "CZE"]
[SourceTitle "playchess.com"]
[Source "ChessBase"]
[SourceQuality "1"]
[TimeControl "40/5400+30:1800+30"]

1. d4 {[%emt 0:00:00]} Nf6 {[%emt 0:00:00]} 2. c4 {[%emt 0:00:00]} e6 {[%emt 0:00:00]} 3. Nc3 {[%emt 0:00:00]} Bb4 {[%emt 0:00:00]} 4. e3 {[%emt 0:00:00]} O-O {[%emt 0:00:10]} 5. Bd3 {[%emt 0:01:51]} d5 {[%emt 0:01:40]} 6. Nf3 {[%emt 0:01:28]} c5 {[%emt 0:00:54]} 7. O-O {[%emt 0:00:24]} cxd4 {[%emt 0:01:53]} 8. exd4 {[%emt 0:00:12]} dxc4 {[%emt 0:01:51]} 9. Bxc4 {[%emt 0:00:06]} Nc6 {[%emt 0:06:23]} 10. a3 {[%emt 0:10:58]} Be7 {[%emt 0:01:09]} 11. Be3 {[%emt 0:00:16]} b6 {[%emt 0:05:06]} 12. Rc1 {[%emt 0:09:06]} Bb7 {[%emt 0:02:10]} 13. Ba2 {[%emt 0:01:14]} Rc8 {[%emt 0:03:35]} 14. Qe2 {[%emt 0:04:26]} Qd6 {[%emt 0:11:56]} 15. Rfd1 {[%emt 0:03:27]} Qb8 {[%emt 0:03:56]} 16. Bg5 {[%emt 0:14:53]} Rfe8 {[%emt 0:09:23]} 17. Ne5 {[%emt 0:34:24]} Nxe5 {[%emt 0:07:38]} 18. dxe5 {[%emt 0:00:04]} Nd5 {[%emt 0:00:48]} 19. Bxd5 {[%emt 0:02:18]} Bxg5 {[%emt 0:03:55]} 20. Bxb7 {[%emt 0:00:07]} Qxb7 {[%emt 0:01:54]} 21. Rb1 {[%emt 0:00:05]} Be7 {[%emt 0:04:48]} 1/2-1/2

[Event "19th Prague Open-A 2020"]
[Site "Prague"]
[Date "2020.01.17"]
[Round "9.10"]
[White "Sharma Isha"]
[Black "Domogaev, Sergey"]
[Result "1/2-1/2"]
[ECO "C54"]
[WhiteElo "2169"]
[BlackElo "2334"]
[Annotator "ChessBase"]
[PlyCount "41"]
[EventDate "2020.01.10"]
[EventType "swiss"]
[EventCountry "CZE"]
[SourceTitle "playchess.com"]
[Source "ChessBase"]
[SourceQuality "1"]
[TimeControl "40/5400+30:1800+30"]

1. e4 {[%emt 0:01:15]} e5 {[%emt 0:00:00]} 2. Nf3 {[%emt 0:00:17]} Nc6 {[%emt 0:00:00]} 3. Bc4 {[%emt 0:00:09]} Bc5 {[%emt 0:00:00]} 4. c3 {[%emt 0:00:09]} Nf6 {[%emt 0:00:00]} 5. d3 {[%emt 0:00:03]} d6 {[%emt 0:00:00]} 6. Nbd2 {[%emt 0:00:06]} a6 {[%emt 0:00:08]} 7. Bb3 {[%emt 0:00:04]} O-O {[%emt 0:01:24]} 8. Nf1 {[%emt 0:01:03]} d5 {[%emt 0:04:44]} 9. Qe2 {[%emt 0:02:43]} Ng4 {[%emt 0:11:01]} 10. exd5 {[%emt 0:06:08]} Na5 {[%emt 0:00:39]} 11. Ne3 {[%emt 0:05:42]} Nxb3 {[%emt 0:00:29]} 12. axb3 {[%emt 0:00:08]} Nxe3 {[%emt 0:00:09]} 13. Bxe3 {[%emt 0:00:06]} Bxe3 {[%emt 0:00:22]} 14. Qxe3 {[%emt 0:01:34]} Qxd5 {[%emt 0:00:09]} 15. O-O {[%emt 0:00:11]} Re8 {[%emt 0:10:01]} 16. b4 {[%emt 0:01:02]} b6 {[%emt 0:17:33]} 17. d4 {[%emt 0:02:00]} e4 {[%emt 0:01:03]} 18. Rfe1 {[%emt 0:00:10]} Bb7 {[%emt 0:00:42]} 19. Nd2 {[%emt 0:00:19]} f5 {[%emt 0:01:34]} 20. f3 {[%emt 0:07:24]} Rad8 {[%emt 0:05:44]} 21. fxe4 {[%emt 0:03:32]} 1/2-1/2

[Event "19th Prague Open-A 2020"]
[Site "Prague"]
[Date "2020.01.17"]
[Round "9.11"]
[White "Otruba, Marek"]
[Black "Chyzy, Jakub"]
[Result "0-1"]
[ECO "A53"]
[WhiteElo "2091"]
[BlackElo "2291"]
[Annotator "ChessBase"]
[PlyCount "66"]
[EventDate "2020.01.10"]
[EventType "swiss"]
[EventCountry "CZE"]
[SourceTitle "playchess.com"]
[Source "ChessBase"]
[SourceQuality "1"]
[TimeControl "40/5400+30:1800+30"]

1. d4 {[%emt 0:00:00]} Nf6 {[%emt 0:00:00]} 2. c4 {[%emt 0:00:00]} d6 {[%emt 0:00:00]} 3. Nc3 {[%emt 0:00:00]} Nbd7 {[%emt 0:00:00]} 4. e4 {[%emt 0:00:25]} e5 {[%emt 0:00:00]} 5. Nf3 {[%emt 0:00:47]} g6 {[%emt 0:00:13]} 6. Be2 {[%emt 0:00:22]} Bg7 {[%emt 0:00:08]} 7. Bg5 {[%emt 0:03:41]} h6 {[%emt 0:03:30]} 8. Be3 {[%emt 0:00:23]} O-O {[%emt 0:01:01]} 9. d5 {[%emt 0:02:47]} Ng4 {[%emt 0:06:49]} 10. Bd2 {[%emt 0:00:24]} f5 {[%emt 0:01:34]} 11. exf5 {[%emt 0:01:03]} gxf5 {[%emt 0:00:25]} 12. h3 {[%emt 0:00:43]} Ngf6 {[%emt 0:07:41]} 13. Qc1 {[%emt 0:00:34]} f4 {[%emt 0:11:32]} 14. g3 {[%emt 0:02:40]} Nh5 {[%emt 0:11:13]} 15. g4 {[%emt 0:10:37]} Nhf6 {[%emt 0:02:13]} 16. g5 {[%emt 0:00:46]} Nh7 {[%emt 0:03:00]} 17. gxh6 {[%emt 0:03:55]} Bxh6 {[%emt 0:00:16]} 18. Bd3 {[%emt 0:10:50]} Nc5 {[%emt 0:01:47]} 19. Bc2 {[%emt 0:05:37]} e4 {[%emt 0:06:40]} 20. Qb1 {[%emt 0:03:15]} Qe7 {[%emt 0:06:17]} 21. Nd4 {[%emt 0:05:47]} e3 {[%emt 0:05:20]} 22. Rg1+ {[%emt 0:10:20]} Kh8 {[%emt 0:01:07]} 23. Rg6 {[%emt 0:00:32]} exd2+ {[%emt 0:01:59]} 24. Kxd2 {[%emt 0:00:16]} f3+ {[%emt 0:02:27]} 25. Kd1 {[%emt 0:00:50]} Bg7 {[%emt 0:07:18]} 26. Ne6 {[%emt 0:01:43]} Nxe6 {[%emt 0:02:23]} 27. dxe6 {[%emt 0:00:09]} Bxe6 {[%emt 0:01:09]} 28. Rxe6 {[%emt 0:01:27]} Qxe6 {[%emt 0:00:07]} 29. Bxh7 {[%emt 0:00:05]} Bxc3 {[%emt 0:00:44]} 30. bxc3 {[%emt 0:00:09]} Qe2+ {[%emt 0:02:17]} 31. Kc1 {[%emt 0:00:05]} Qxf2 {[%emt 0:00:35]} 32. Qg6 {[%emt 0:00:29]} Rae8 {[%emt 0:00:57]} 33. Qh6 {[%emt 0:00:23]} Re1# {[%emt 0:00:07]} 0-1

[Event "19th Prague Open-A 2020"]
[Site "Prague"]
[Date "2020.01.17"]
[Round "9.14"]
[White "Nemec, Jachym"]
[Black "Pushkov, Nikolai"]
[Result "1/2-1/2"]
[ECO "E15"]
[WhiteElo "1988"]
[BlackElo "2239"]
[Annotator "ChessBase"]
[PlyCount "69"]
[EventDate "2020.01.10"]
[EventType "swiss"]
[EventCountry "CZE"]
[SourceTitle "playchess.com"]
[Source "ChessBase"]
[SourceQuality "1"]
[TimeControl "40/5400+30:1800+30"]

1. d4 {[%emt 0:00:00]} Nf6 {[%emt 0:00:00]} 2. c4 {[%emt 0:00:14]} e6 {[%emt 0:00:00]} 3. Nf3 {[%emt 0:00:10]} b6 {[%emt 0:01:11]} 4. g3 {[%emt 0:00:06]} Ba6 {[%emt 0:00:20]} 5. Nbd2 {[%emt 0:00:14]} d5 {[%emt 0:00:47]} 6. Bg2 {[%emt 0:01:56]} Be7 {[%emt 0:00:18]} 7. Qa4+ {[%emt 0:09:34]} c6 {[%emt 0:01:00]} 8. Ne5 {[%emt 0:01:13]} Bb7 {[%emt 0:07:10]} 9. Ndf3 {[%emt 0:10:17]} O-O {[%emt 0:00:44]} 10. O-O {[%emt 0:01:01]} Ne4 {[%emt 0:01:53]} 11. Rd1 {[%emt 0:00:57]} a5 {[%emt 0:03:12]} 12. Bf4 {[%emt 0:03:53]} Nd6 {[%emt 0:07:21]} 13. cxd5 {[%emt 0:01:01]} cxd5 {[%emt 0:02:18]} 14. Rdc1 {[%emt 0:03:54]} Ba6 {[%emt 0:08:27]} 15. Qd1 {[%emt 0:02:06]} f6 {[%emt 0:03:08]} 16. Nd3 {[%emt 0:00:15]} Qd7 {[%emt 0:00:20]} 17. Bh3 {[%emt 0:03:22]} Bb7 {[%emt 0:10:36]} 18. Rc2 {[%emt 0:24:47]} Nc6 {[%emt 0:01:16]} 19. Rac1 {[%emt 0:00:06]} Rac8 {[%emt 0:00:13]} 20. b3 {[%emt 0:02:20]} Nf5 {[%emt 0:04:38]} 21. Bxf5 {[%emt 0:03:53]} exf5 {[%emt 0:00:03]} 22. h4 {[%emt 0:00:23]} Ba3 {[%emt 0:01:07]} 23. Rb1 {[%emt 0:00:08]} Ba6 {[%emt 0:02:34]} 24. Bd2 {[%emt 0:06:12]} Rfe8 {[%emt 0:00:53]} 25. Nf4 {[%emt 0:01:09]} Re4 {[%emt 0:00:50]} 26. e3 {[%emt 0:01:05]} Ree8 {[%emt 0:08:53]} 27. Ne1 {[%emt 0:04:09]} g5 {[%emt 0:05:14]} 28. hxg5 {[%emt 0:00:11]} fxg5 {[%emt 0:00:07]} 29. Nfd3 {[%emt 0:00:47]} Qe6 {[%emt 0:05:33]} 30. Bc1 {[%emt 0:03:16]} Bd6 {[%emt 0:00:45]} 31. Qh5 {[%emt 0:01:44]} Qg6 {[%emt 0:01:33]} 32. Qh1 {[%emt 0:01:21]} Qe6 {[%emt 0:01:35]} 33. Qh5 {[%emt 0:00:36]} Qg6 {[%emt 0:02:04]} 34. Qh1 {[%emt 0:00:04]} Qe6 {[%emt 0:02:06]} 35. Qh5 {[%emt 0:00:06]} 1/2-1/2

[Event "19th Prague Open-A 2020"]
[Site "Prague"]
[Date "2020.01.17"]
[Round "9.15"]
[White "Pavlidou, Ekaterini"]
[Black "Laverton, Christian"]
[Result "1/2-1/2"]
[ECO "A06"]
[WhiteElo "2160"]
[BlackElo "2109"]
[Annotator "ChessBase"]
[PlyCount "60"]
[EventDate "2020.01.10"]
[EventType "swiss"]
[EventCountry "CZE"]
[SourceTitle "playchess.com"]
[Source "ChessBase"]
[SourceQuality "1"]
[TimeControl "40/5400+30:1800+30"]

1. Nf3 {[%emt 0:01:39]} d5 {[%emt 0:00:00]} 2. g3 {[%emt 0:00:59]} Nf6 {[%emt 0:00:43]} 3. Bg2 {[%emt 0:00:15]} Bf5 {[%emt 0:00:57]} 4. c4 {[%emt 0:00:29]} c6 {[%emt 0:00:37]} 5. b3 {[%emt 0:03:14]} e6 {[%emt 0:01:56]} 6. O-O {[%emt 0:00:40]} h6 {[%emt 0:02:17]} 7. Bb2 {[%emt 0:01:38]} Nbd7 {[%emt 0:01:15]} 8. d3 {[%emt 0:00:26]} Be7 {[%emt 0:01:31]} 9. Nbd2 {[%emt 0:01:04]} O-O {[%emt 0:01:01]} 10. Qc2 {[%emt 0:05:06]} Bh7 {[%emt 0:05:44]} 11. Rfe1 {[%emt 0:07:07]} a5 {[%emt 0:03:26]} 12. a3 {[%emt 0:01:17]} Nc5 {[%emt 0:03:53]} 13. Bd4 {[%emt 0:09:29]} Nfd7 {[%emt 0:04:32]} 14. Rab1 {[%emt 0:13:04]} b5 {[%emt 0:11:14]} 15. b4 {[%emt 0:06:55]} axb4 {[%emt 0:03:18]} 16. axb4 {[%emt 0:00:06]} Na6 {[%emt 0:02:14]} 17. c5 {[%emt 0:00:34]} Qc7 {[%emt 0:04:18]} 18. e4 {[%emt 0:05:09]} Bf6 {[%emt 0:05:03]} 19. e5 {[%emt 0:06:26]} Be7 {[%emt 0:01:23]} 20. Qc3 {[%emt 0:04:15]} Ra7 {[%emt 0:01:44]} 21. h4 {[%emt 0:05:03]} Rfa8 {[%emt 0:02:11]} 22. Bh3 {[%emt 0:05:11]} Nab8 {[%emt 0:04:36]} 23. Rb3 {[%emt 0:02:58]} Ra2 {[%emt 0:02:58]} 24. Nf1 {[%emt 0:01:26]} R8a4 {[%emt 0:01:50]} 25. Ne3 {[%emt 0:02:28]} Qa7 {[%emt 0:03:27]} 26. Nc2 {[%emt 0:00:17]} Nf8 {[%emt 0:03:02]} 27. Re3 {[%emt 0:02:41]} Na6 {[%emt 0:04:56]} 28. Nfe1 {[%emt 0:00:33]} Bd8 {[%emt 0:02:07]} 29. Rb1 {[%emt 0:04:07]} Ng6 {[%emt 0:02:12]} 30. h5 {[%emt 0:01:57]} Ne7 {[%emt 0:00:54]} 1/2-1/2